bitfinex/quotes_ETHUSD_20250602
["timestamp","ask_amount","ask_price","bid_price","bid_amount"]
[1748833570147,0.7765,2502.6,2501.8,3.99712207]
[1748833570333,0.4216,2503.2,2501.8,5.13712207]
[1748833570334,4.238,2502.5,2501.8,5.13712207]
[1748833570540,4.238,2502.5,2502.4,3.99600949]
[1748833570741,4.238,2502.5,2502.2,4.76669126]
[1748833571153,4.238,2502.5,2502.3,3.99631109]
[1748833571384,4.238,2502.5,2502.4,3.99616368]
[1748833572746,4.238,2502.5,2502.2,0.7703]
[1748833572959,4.238,2502.5,2501.9,5.94895275]
[1748833573130,8.8028,2502.4,2501.8,1.151]
[1748833573347,8.8028,2502.4,2501.9,3.99696185]
[1748833573550,8.8028,2502.4,2502.0,3.99675766]
[1748833573748,8.8028,2502.4,2502.1,3.9966038]
[1748833574051,8.8028,2502.4,2502.0,3.99672982]
[1748833574776,0.8028,2502.7,2502.1,3.99662078]
[1748833575077,4.235,2502.5,2502.2,3.99643697]
[1748833575276,4.235,2502.5,2502.0,3.99666927]
[1748833575277,4.235,2502.5,2502.1,3.99657936]
[1748833575474,4.235,2502.5,2502.0,5.14774855]
[1748833575850,4.235,2502.5,2501.6,0.801]
[1748833575851,8.23101534,2502.5,2501.9,3.99684302]
[1748833576043,3.99618238,2502.4,2501.9,3.99684302]
[1748833576244,0.82311824,2502.4,2501.9,3.99680262]
[1748833576640,0.82311824,2502.4,2502.0,3.99677406]
[1748833577577,12.81938025,2502.4,2501.8,3.99706717]
[1748833577783,3.99636711,2502.3,2501.7,3.99724651]
[1748833578090,0.7603,2502.1,2501.6,4.7983746]
[1748833578243,0.7603,2502.1,2500.6,3.99889628]
[1748833578244,4.231,2502.0,2501.5,5.14851722]
[1748833578444,4.231,2502.0,2501.6,3.99741102]
[1748833578640,4.231,2502.0,2501.7,3.99727604]
[1748833578900,4.231,2502.0,2501.8,3.99712207]
[1748833579184,4.231,2502.0,2501.7,1.151]
[1748833579487,4.6541,2502.0,2501.5,1.151]
[1748833579644,4.231,2502.0,2501.8,3.99697662]
[1748833580472,4.231,2502.0,2501.7,3.99721597]
[1748833580650,4.231,2502.0,2501.5,3.99755371]
[1748833582278,4.231,2502.0,2501.7,3.99726325]
[1748833582476,1.58341824,2502.4,2501.5,3.99760143]
[1748833582773,4.23,2502.2,2501.9,3.9968179]
[1748833583488,4.23,2502.2,2502.0,3.99679419]
[1748833583692,1.58341824,2502.4,2502.1,3.99664282]
[1748833583846,4.228,2502.3,2502.0,3.99674361]
[1748833584047,4.228,2502.3,2501.9,3.99683737]
[1748833584349,4.228,2502.3,2501.8,3.99704283]
[1748833584549,4.228,2502.3,2501.9,3.99694145]
[1748833584773,4.72683,2502.3,2501.8,3.99705006]
[1748833584983,4.72683,2502.3,2501.9,3.99686269]
[1748833585157,4.72683,2502.3,2501.8,3.99698226]
[1748833585360,0.55,2502.2,2501.7,3.99723226]
[1748833585571,0.92731556,2502.1,2501.6,5.1483609]
[1748833585758,0.92731556,2502.1,2501.7,3.99727562]
[1748833586348,0.92731556,2502.1,2501.7,3.99720336]
[1748833587046,0.92731556,2502.1,2501.8,3.99711598]
[1748833587242,0.92731556,2502.1,2501.7,3.99724436]
[1748833587484,0.92731556,2502.1,2501.7,3.99714835]
[1748833587655,0.92731556,2502.1,2501.5,0.7585]
[1748833587860,0.92731556,2502.1,2501.7,3.9972815]
[1748833588184,0.7732,2501.9,2501.2,0.7615]
[1748833588381,4.9942,2501.9,2501.5,3.99746337]
[1748833588685,4.9942,2501.9,2501.4,5.14869125]
[1748833588888,4.9942,2501.9,2501.5,3.99758521]
[1748833589046,4.9942,2501.9,2501.4,5.14874959]
[1748833589253,5.58635156,2501.9,2501.4,3.99774959]
[1748833589464,5.58635156,2501.9,2501.5,3.9975607]
[1748833589873,5.58635156,2501.9,2501.4,5.14868931]
[1748833590070,8.0,2501.8,2500.9,0.7615]
[1748833590385,8.0,2501.8,2499.1,0.3957385]
[1748833590386,0.55,2500.6,2499.1,0.3957385]
[1748833590595,0.55,2500.4,2499.5,4.7621753]
[1748833590750,4.193,2500.9,2499.5,4.7621753]
[1748833590751,3.99750771,2501.6,2499.6,0.47712496]
[1748833590958,3.99884824,2500.8,2499.6,0.47712496]
[1748833591179,11.99915986,2500.6,2499.9,4.00009808]
[1748833591379,8.815,2500.6,2500.1,3.99979101]
[1748833591553,8.815,2500.6,2499.6,4.47770714]
[1748833591912,0.815,2500.6,2500.1,5.84303396]
[1748833592183,6.07194129,2501.8,2499.8,0.7504]
[1748833592184,0.76,2501.1,2499.8,0.7504]
[1748833592399,0.76,2501.6,2501.1,3.99822369]
[1748833592607,0.76,2501.6,2500.9,0.7504]
[1748833592957,0.76,2501.6,2500.9,4.74890805]
[1748833593204,3.99776766,2501.4,2500.6,0.7504]
[1748833593386,8.76,2501.6,2500.6,0.47495734]
[1748833593597,8.76,2501.6,2500.9,3.99850506]
[1748833593795,0.76,2501.6,2500.9,3.99850506]
[1748833594002,8.0,2501.7,2501.0,4.74864899]
[1748833594227,8.0,2501.7,2501.1,3.99824077]
[1748833594542,12.308,2501.7,2501.3,3.99791878]
[1748833594687,8.0,2501.7,2501.0,0.7504]
[1748833594891,5.39308244,2501.8,2501.0,0.7504]
[1748833595116,5.39308244,2501.8,2501.5,3.99758678]
[1748833595521,5.39308244,2501.8,2501.7,3.99728184]
[1748833596001,1.151,2502.9,2501.7,3.99728184]
[1748833596002,0.76,2503.0,2501.7,0.7504]
[1748833596203,3.99541577,2502.9,2502.0,3.99668219]
[1748833596404,0.76,2503.0,2502.1,3.99664282]
[1748833596405,3.99525228,2503.0,2502.1,3.99664282]
[1748833596629,3.99525228,2503.0,2502.2,3.99647946]
[1748833596934,4.326,2503.0,2502.4,3.99606817]
[1748833597127,8.0,2503.2,2502.1,1.2]
[1748833597290,6.65733396,2503.3,2502.1,1.2]
[1748833597291,0.8143,2503.3,2502.2,4.82828309]
[1748833597632,0.71106609,2503.6,2502.1,1.2]
[1748833597633,1.52536609,2503.6,2502.9,0.8191]
[1748833597832,0.8235,2504.0,2502.9,7.86213396]
[1748833598131,0.02785746,2503.9,2503.5,3.9943412]
[1748833598891,0.02785746,2503.9,2503.6,3.99419498]
[1748833599091,8.0,2504.1,2503.6,3.99419498]
[1748833599415,0.8235,2504.3,2503.6,3.99419498]
[1748833599750,0.8235,2504.3,2503.0,1.1857659]
[1748833599751,3.99383359,2503.9,2503.2,3.9948614]
[1748833600048,8.32483359,2503.9,2503.2,3.9948614]
[1748833600209,3.99361036,2504.0,2503.0,1.1857659]
[1748833600210,3.99361022,2504.0,2503.0,1.1857659]
[1748833600387,4.33,2504.0,2503.4,3.99445683]
[1748833600588,8.0,2504.1,2503.1,1.199]
[1748833600802,11.99355672,2504.1,2503.2,1.199]
[1748833601003,3.99373387,2504.0,2503.3,3.99463035]
[1748833601342,3.99392229,2503.9,2503.2,3.99484159]
[1748833601749,3.99392229,2503.9,2503.2,3.99474517]
[1748833602034,8.0,2504.1,2503.2,3.99474517]
[1748833602238,3.99392618,2503.9,2503.3,3.99460921]
[1748833602537,11.99347189,2504.1,2503.4,3.99456088]
[1748833602697,3.99370706,2504.0,2503.3,3.99465869]
[1748833603196,3.99383962,2503.9,2503.3,3.99465549]
[1748833603395,4.54370585,2504.0,2503.2,3.99485523]
[1748833603642,4.54370585,2504.0,2503.3,3.99472696]
[1748833603800,4.54370585,2504.0,2503.2,3.99485523]
[1748833604001,4.54370585,2504.0,2503.3,3.99472696]
[1748833604330,3.99389075,2503.9,2503.3,3.99472051]
[1748833604636,3.99401982,2503.8,2503.2,3.99487854]
[1748833605038,3.99383234,2503.9,2503.3,3.99472281]
[1748833605219,0.8196,2503.8,2503.3,3.99472281]
[1748833605419,3.99435707,2503.6,2502.8,3.99552501]
[1748833605619,3.99435707,2503.6,2502.8,4.51497751]
[1748833605815,3.99442597,2503.5,2502.9,3.99536537]
[1748833606011,3.99466582,2503.4,2502.8,4.51497223]
[1748833606237,3.99466582,2503.4,2502.6,3.99571385]
[1748833606439,3.99472696,2503.3,2502.7,3.9956484]
[1748833607314,4.54451096,2503.5,2502.7,3.9956484]
[1748833607498,4.54451096,2503.5,2502.9,3.99528006]
[1748833607701,6.72543343,2503.8,2503.0,3.99520575]
[1748833607702,11.99424929,2503.6,2503.0,3.99520575]
[1748833607927,16.31724929,2503.6,2503.0,3.99520575]
[1748833608312,8.0,2503.7,2502.7,5.19465643]
[1748833608508,4.325,2503.6,2503.2,3.99486026]
[1748833608716,4.325,2503.6,2503.1,3.99498836]
[1748833609810,0.8196,2503.8,2503.4,3.99443248]
[1748833610001,0.8196,2503.8,2503.5,3.99437716]
[1748833610637,0.8196,2503.8,2503.2,0.799]
[1748833610819,8.8196,2503.8,2503.5,3.99429025]
[1748833611417,0.8196,2503.8,2503.5,3.99429025]
[1748833611641,0.8058,2504.3,2503.6,3.99414459]
[1748833611840,0.8058,2504.3,2503.2,1.27842057]
[1748833611841,4.317,2504.2,2503.4,3.99452212]
[1748833612044,4.317,2504.2,2503.7,3.99396907]
[1748833612369,0.8058,2504.3,2503.7,0.79883526]
[1748833612663,0.7598,2504.8,2504.5,3.99277586]
[1748833612958,4.321,2505.1,2504.6,3.99254221]
[1748833613106,0.7879,2505.2,2504.8,3.99221242]
[1748833613480,0.7879,2505.2,2504.1,1.199]
[1748833613481,0.87500592,2506.4,2505.6,0.8277]
[1748833613771,0.7879,2506.3,2505.6,0.8277]
[1748833614051,0.7879,2506.3,2504.8,0.20128028]
[1748833614052,10.24483343,2506.2,2504.7,2.0313]
[1748833614269,3.99101855,2505.7,2504.8,0.60238556]
[1748833614500,8.0,2506.1,2504.8,1.80138556]
[1748833614607,8.0,2505.5,2504.1,0.8323]
[1748833614811,3.99181376,2505.2,2504.1,0.8323]
[1748833615115,11.99157183,2505.3,2504.1,0.8323]
[1748833615419,3.99184191,2505.2,2504.5,3.99279414]
[1748833615622,8.0,2505.3,2504.6,3.99255204]
[1748833616031,3.99154684,2505.3,2504.6,0.79855089]
[1748833616244,4.34,2505.2,2504.7,3.99248672]
[1748833616953,8.33054501,2505.3,2504.7,3.99248672]
[1748833617127,8.0,2505.2,2504.3,3.99313181]
[1748833617323,11.99108062,2505.6,2504.9,3.9920653]
[1748833617525,3.99108062,2505.6,2504.9,3.9920653]
[1748833617725,4.339,2505.5,2504.9,3.9920653]
[1748833618163,8.0,2505.3,2504.2,8.33123884]
[1748833618448,8.0,2505.3,2504.7,3.99237374]
[1748833618652,3.99174287,2505.2,2504.3,0.91635388]
[1748833618955,8.0,2505.6,2504.5,3.99281293]
[1748833619164,3.99179855,2505.2,2504.5,3.99281293]
[1748833619313,3.99188367,2505.1,2504.5,3.99281293]
[1748833619867,4.333,2505.2,2504.6,3.99255652]
[1748833620081,4.332,2505.2,2504.9,3.99208036]
[1748833620358,8.32370141,2505.2,2504.4,3.99293323]
[1748833620518,8.0,2505.2,2504.6,3.99261728]
[1748833620712,12.333,2505.2,2504.6,3.99261728]
[1748833621022,12.333,2505.2,2504.8,3.99228676]
[1748833621345,8.0,2505.3,2504.9,3.99207137]
[1748833621550,8.0,2505.3,2505.0,3.99200846]
[1748833621736,8.0,2505.3,2504.9,3.99211684]
[1748833622147,3.99170433,2505.2,2504.6,3.99259017]
[1748833622515,8.0,2505.3,2504.1,0.8323]
[1748833622843,3.99204153,2505.0,2504.5,3.99280907]
[1748833623149,3.99248289,2504.8,2504.2,1.198]
[1748833623314,3.99267296,2504.6,2504.2,1.198]
[1748833623652,3.99266405,2504.6,2504.2,1.198]
[1748833623946,8.0,2504.8,2503.8,0.7526]
[1748833624133,3.99324946,2504.3,2503.5,12.62038621]
[1748833624309,8.32424946,2504.3,2503.7,3.99407346]
[1748833624755,4.331,2504.3,2503.8,3.99386813]
[1748833625116,8.3241867,2504.3,2503.7,3.99403245]
[1748833625445,3.99354151,2504.1,2503.4,0.7526]
[1748833625618,3.99359998,2504.1,2503.4,4.74704342]
[1748833625820,3.99374796,2504.0,2503.4,3.99444342]
[1748833626017,3.99331287,2504.2,2503.6,3.99410018]
[1748833626348,3.99301808,2504.4,2503.9,3.99372422]
[1748833626349,8.0,2504.4,2503.9,3.99372422]
[1748833626652,4.325,2504.3,2503.9,3.99372422]
[1748833626951,4.325,2504.3,2503.8,3.99390236]
[1748833627150,8.31814706,2504.3,2503.8,3.99390236]
[1748833627848,4.325,2504.3,2503.4,4.91316725]
[1748833628011,8.55,2504.2,2503.4,3.99445134]
[1748833628351,8.55,2504.2,2503.1,0.7526]
[1748833628352,8.8271,2503.8,2503.1,4.7475826]
[1748833628529,8.31717978,2503.7,2503.1,3.9949826]
[1748833628845,8.31717978,2503.7,2503.2,3.99486219]
[1748833628846,4.323,2503.7,2503.2,3.99486219]
[1748833629045,4.323,2504.2,2502.9,8.0]
[1748833629212,8.31629861,2504.2,2503.1,0.7576]
[1748833629413,8.0,2504.1,2503.5,3.99440018]
[1748833629747,8.0,2504.1,2503.1,4.75251625]
[1748833629748,3.99411837,2503.7,2503.1,4.75251625]
[1748833629952,4.324,2503.7,2503.2,3.99488615]
[1748833630127,8.31812382,2503.7,2503.1,4.752562]
[1748833630326,8.31812382,2503.7,2503.1,4.75255454]
[1748833630773,4.324,2503.7,2503.2,3.99482682]
[1748833631128,8.31817555,2503.7,2503.1,3.9949976]
[1748833631829,3.99428825,2503.6,2503.1,3.9949976]
[1748833632029,4.74798825,2503.6,2503.0,3.99512892]
[1748833632231,3.99443966,2503.5,2503.0,3.99512892]
[1748833632427,3.99443966,2503.5,2502.9,3.99525892]
[1748833632848,3.99443966,2503.5,2503.0,3.9951541]
[1748833633157,8.7537,2503.6,2502.9,3.99532013]
[1748833633454,12.74795116,2503.6,2503.0,3.99520575]
[1748833633938,8.7537,2503.6,2502.8,0.8324]
[1748833634116,3.99446643,2503.5,2502.9,3.99524908]
[1748833634317,4.74799887,2503.6,2502.9,3.99524908]
[1748833634534,4.74799887,2503.6,2503.0,3.99519901]
[1748833635157,0.7537,2503.6,2503.1,3.99494524]
[1748833635343,4.74795985,2503.6,2503.0,3.99513384]
[1748833635734,3.99440834,2503.5,2503.0,3.99513384]
[1748833635922,3.99440834,2503.5,2502.9,3.99534789]
[1748833636264,4.74802593,2503.6,2503.0,3.99518202]
[1748833636764,8.3034631,2503.5,2502.8,3.99550512]
[1748833636944,3.99459375,2503.4,2502.9,3.99523567]
[1748833637166,8.30348476,2503.5,2502.9,3.99523567]
[1748833637475,4.309,2503.5,2503.0,3.99518922]
[1748833637679,8.3034239,2503.5,2503.0,3.99518922]
[1748833637846,4.309,2503.5,2503.1,3.99504129]
[1748833638366,4.309,2503.5,2503.0,3.99512978]
[1748833638555,8.30343399,2503.5,2502.9,3.99528982]
[1748833638759,8.30343399,2503.5,2503.0,3.99519126]
[1748833638956,3.99462399,2503.4,2502.8,3.995472]
[1748833639162,8.30346784,2503.5,2503.0,3.99512104]
[1748833639362,4.309,2503.5,2503.1,3.99500349]
[1748833639587,4.309,2503.5,2503.2,3.99481229]
[1748833639761,0.7537,2503.6,2503.1,3.994944]
[1748833640084,4.301,2503.5,2503.1,3.994944]
[1748833640293,0.7537,2503.6,2502.2,4.75]
[1748833640452,0.7537,2503.6,2502.8,3.99549961]
[1748833640453,3.99469075,2503.4,2502.8,3.99549961]
[1748833640654,3.99545673,2502.9,2502.0,2.0101]
[1748833640964,4.32,2502.8,2502.4,3.99614183]
[1748833641166,4.32,2502.8,2502.0,4.80180777]
[1748833641481,3.99593096,2502.6,2501.9,3.99684286]
[1748833641660,8.0,2502.6,2501.7,0.8059]
[1748833641995,9.3301,2502.7,2502.2,3.99636491]
[1748833642350,0.7801,2502.7,2501.9,3.99692296]
[1748833642685,3.99601868,2502.5,2501.7,1.28623725]
[1748833642872,14.2207647,2502.6,2501.9,3.99694827]
[1748833643059,3.9960904,2502.5,2501.9,3.99694827]
[1748833643273,3.9960904,2502.5,2502.0,3.99677165]
[1748833643488,11.99609396,2502.5,2501.9,3.99693876]
[1748833643702,3.99641288,2502.3,2501.5,1.205]
[1748833643985,4.81262589,2502.3,2501.7,3.99721605]
[1748833644204,0.8163,2502.3,2501.8,3.99707547]
[1748833644386,0.8163,2502.3,2502.1,3.9966155]
[1748833644550,0.55,2503.0,2502.5,3.99589619]
[1748833644747,0.55,2503.0,2502.4,3.99609113]
[1748833644748,8.0,2502.8,2502.4,3.99609113]
[1748833644947,8.0,2502.8,2502.0,3.99680255]
[1748833645191,0.8163,2503.1,2502.6,3.99575437]
[1748833645400,8.0,2502.7,2502.6,3.99575437]
[1748833646690,8.0,2502.7,2502.0,0.8104]
[1748833646896,0.7552,2502.6,2502.2,3.9964189]
[1748833647185,0.7552,2502.6,2502.0,3.99680255]
[1748833647385,0.7552,2502.6,2502.1,3.99664282]
[1748833647591,0.7552,2502.6,2502.1,3.99653916]
[1748833647893,0.55,2502.5,2502.1,3.99657885]
[1748833648081,4.317,2502.4,2502.1,3.99657885]
[1748833649193,4.317,2502.4,2501.4,3.99762559]
[1748833649369,4.317,2502.4,2501.4,2.08076256]
[1748833649691,4.317,2502.4,2501.8,3.99700778]
[1748833650476,8.31318941,2502.4,2501.8,3.99700778]
[1748833650677,8.31318941,2502.4,2501.6,3.99741803]
[1748833650882,3.99632788,2502.3,2501.7,3.99716742]
[1748833651178,3.99632788,2502.3,2501.7,3.99719039]
[1748833651179,0.55,2502.3,2501.7,3.99719039]
[1748833651383,4.54642207,2502.3,2501.7,3.99719039]
[1748833651591,0.8145,2502.1,2501.5,3.99754299]
[1748833651957,8.0,2502.0,2501.6,3.99742092]
[1748833652177,4.312,2501.9,2501.6,3.99742092]
[1748833652699,4.81120754,2502.1,2501.4,3.99776125]
[1748833652700,0.8145,2502.1,2501.4,3.99776125]
[1748833652908,3.99672875,2502.1,2501.4,3.99776125]
[1748833653211,8.55,2502.1,2501.7,3.99716049]
[1748833653412,8.55,2502.1,2501.7,3.99714137]
[1748833653895,3.99636782,2502.3,2501.3,0.7951]
[1748833654215,4.315,2502.0,2501.7,3.99717505]
[1748833654513,4.315,2502.0,2501.5,3.99750695]
[1748833654514,4.315,2502.0,2501.6,3.99734224]
[1748833654708,4.315,2502.0,2501.7,3.9971897]
[1748833655364,0.7529,2501.9,2501.5,3.99746935]
[1748833655813,0.7529,2501.9,2501.6,3.99743747]
[1748833656111,0.7529,2501.9,2501.7,3.99726296]
[1748833656329,0.7529,2501.9,2501.7,3.99727642]
[1748833656665,0.7529,2501.9,2501.7,3.99714368]
[1748833656913,4.308,2501.8,2501.6,3.99733847]
[1748833657665,4.308,2501.8,2501.7,3.99728184]
[1748833658079,4.308,2501.8,2501.6,3.99736188]
[1748833660101,0.7529,2501.9,2501.7,3.99728184]
[1748833660324,4.3,2501.8,2501.7,3.99728184]
[1748833660667,4.3,2501.8,2501.6,3.99737027]
[1748833661111,4.3,2501.8,2501.7,3.99728184]
[1748833661923,0.8088,2502.2,2501.7,0.79947033]
[1748833662131,4.296,2502.1,2502.0,3.99672778]
[1748833662437,4.296,2502.1,2501.8,3.99702512]
[1748833662584,4.296,2502.1,2501.7,3.99727185]
[1748833662789,4.296,2502.1,2501.8,3.99712207]
[1748833663742,4.3,2502.0,2501.8,3.99712207]
[1748833663944,4.3,2502.0,2501.7,3.9972629]
[1748833664302,4.3,2502.0,2501.3,0.7951]
[1748833664599,0.8251,2501.9,2501.6,3.99734665]
[1748833665117,0.8251,2501.9,2501.5,3.99750566]
[1748833665284,0.8251,2501.9,2501.4,3.99776125]
[1748833665486,0.8251,2501.9,2501.5,3.99760143]
[1748833665733,0.8251,2501.9,2501.6,3.99742786]
[1748833665883,0.8251,2501.9,2501.3,4.79301283]
[1748833666218,0.8251,2501.9,2501.6,3.99735435]
[1748833667201,0.8251,2501.9,2501.5,3.99756302]
[1748833667934,0.8251,2501.9,2501.5,3.99749401]
[1748833668629,0.8251,2501.9,2501.6,3.99743035]
[1748833669924,0.7723,2502.3,2501.1,1.194]
[1748833670095,4.289,2502.2,2501.4,0.8306]
[1748833670300,4.289,2502.2,2501.8,3.99700214]
[1748833670502,8.0,2502.1,2501.8,3.99700214]
[1748833670696,8.5,2502.1,2501.8,3.99700214]
[1748833671228,4.288,2502.0,2501.8,3.99700214]
[1748833671988,12.288,2502.0,2501.8,3.9970452]
[1748833673416,8.0,2502.0,2501.9,3.9969623]
[1748833674613,8.0,2502.0,2501.8,3.99706606]
[1748833674815,8.0,2502.0,2501.6,3.99744163]
[1748833675118,8.0,2502.0,2501.8,3.99696419]
[1748833675625,8.0,2502.0,2501.5,1.194]
[1748833675626,8.0,2502.2,2501.9,0.781]
[1748833675930,8.0,2502.2,2501.9,3.99688299]
[1748833676327,8.0,2502.2,2501.6,4.7784032]
[1748833676629,8.0,2502.2,2501.8,3.99710165]
[1748833677430,8.0,2502.2,2501.7,3.99721896]
[1748833677431,11.99653456,2502.2,2501.7,3.99721896]
[1748833677612,8.0,2502.2,2501.8,3.99709871]
[1748833677931,8.0,2502.2,2501.6,0.781]
[1748833677932,0.8026,2502.5,2502.0,3.99670857]
[1748833678230,4.65860532,2502.4,2502.0,3.99670857]
[1748833678404,0.8026,2502.5,2502.0,3.99670857]
[1748833678611,4.65761091,2502.4,2502.0,3.99665236]
[1748833678831,0.37861091,2502.3,2502.0,3.99665552]
[1748833679001,4.279,2502.4,2502.0,3.99665552]
[1748833679204,0.37869351,2502.3,2502.0,3.99665552]
[1748833679544,4.279,2502.4,2502.0,3.99665552]
[1748833680336,4.286,2502.6,2502.1,4.80639325]
[1748833680538,4.37488009,2502.5,2501.8,6.00086593]
[1748833680696,11.99641033,2502.3,2501.7,3.99719743]
[1748833680901,8.66030615,2502.2,2501.7,3.99719743]
[1748833681134,4.285,2502.2,2501.5,4.80737224]
[1748833681430,4.285,2502.2,2501.8,3.99703524]
[1748833681637,4.285,2502.2,2501.8,3.99709742]
[1748833682168,8.28157669,2502.2,2501.6,3.99728656]
[1748833682464,8.28157669,2502.2,2501.7,3.99724655]
[1748833682623,5.84781957,2501.9,2501.2,0.808]
[1748833682828,4.283,2501.8,2501.4,3.99769652]
[1748833685444,4.283,2501.8,2501.2,4.8060621]
[1748833685960,4.283,2501.8,2501.4,3.9977565]
[1748833686467,4.283,2501.8,2501.3,3.99784745]
[1748833686669,4.283,2501.8,2501.4,3.99767858]
[1748833686866,4.46963952,2502.4,2501.4,3.99767858]
[1748833686867,0.8229,2502.2,2502.0,3.99680216]
[1748833687169,0.8229,2502.2,2501.7,4.75527812]
[1748833687170,5.1019,2502.2,2501.7,4.75527812]
[1748833687367,0.37884336,2502.3,2501.7,0.758]
[1748833687668,4.278,2502.1,2502.0,3.99680255]
[1748833688170,4.276,2502.1,2502.0,3.99680255]
[1748833688857,4.81891097,2502.5,2501.8,3.99699579]
[1748833688858,0.37880209,2502.4,2501.8,3.99699579]
[1748833689056,0.8229,2502.5,2501.8,3.99699579]
[1748833689057,4.275,2502.3,2502.2,3.99634444]
[1748833690378,4.273,2502.3,2502.2,3.99634444]
[1748833690559,0.37859332,2502.6,2502.4,3.99614712]
[1748833690758,0.8229,2502.7,2502.4,3.99614712]
[1748833691070,0.8229,2502.7,2502.5,3.99591957]
[1748833691245,0.8147,2502.9,2502.5,3.99591957]
[1748833691571,4.273,2502.8,2502.5,3.99591957]
[1748833691780,4.273,2502.8,2502.3,3.99624909]
[1748833692107,16.64700799,2502.8,2502.1,3.99660221]
[1748833692383,16.26854379,2502.8,2502.1,3.99660221]
[1748833692535,12.273,2502.8,2502.3,3.996276]
[1748833692740,12.273,2502.8,2502.4,3.99603879]
[1748833693047,12.273,2502.8,2501.9,2.39849958]
[1748833693246,12.273,2502.8,2502.0,0.63955018]
[1748833693667,12.273,2502.8,2502.4,3.99615]
[1748833694875,4.269,2502.7,2502.2,3.99648309]
[1748833695169,8.0,2502.8,2502.6,3.99572477]
[1748833695348,4.267,2502.6,2502.5,3.99590335]
[1748833695549,8.0,2502.8,2502.5,4.79519524]
[1748833695744,4.266,2502.7,2502.3,3.99625091]
[1748833695977,4.266,2502.7,2502.4,3.99615217]
[1748833696467,4.266,2502.7,2502.3,3.99624865]
[1748833696673,4.266,2502.7,2502.4,3.99615165]
[1748833696877,4.266,2502.7,2502.3,3.99621065]
[1748833697376,4.266,2502.7,2502.4,3.99614421]
[1748833698479,4.266,2502.7,2502.5,3.99595636]
[1748833698775,8.26168708,2502.7,2502.0,0.7896]
[1748833698971,8.26168708,2502.7,2502.2,3.99646828]
[1748833699376,4.266,2502.7,2502.3,3.99632338]
[1748833699594,4.266,2502.7,2502.5,3.99588856]
[1748833699739,8.0,2502.8,2502.6,3.9957369]
[1748833700051,0.8147,2502.9,2502.7,3.99568239]
[1748833700380,4.264,2502.8,2502.6,3.99570979]
[1748833701478,4.264,2502.8,2502.5,3.99594165]
[1748833701780,8.25959313,2502.8,2502.3,3.99623118]
[1748833702675,4.264,2502.8,2502.3,3.99623118]
[1748833703239,0.8134,2502.6,2501.4,17.54578168]
[1748833703442,8.0,2502.4,2501.5,1.87187817]
[1748833703748,8.25741261,2502.3,2501.7,3.99719433]
[1748833703944,8.0,2502.2,2501.8,3.99710166]
[1748833705104,8.0,2502.2,2501.4,0.7981]
[1748833705303,8.0,2502.2,2501.9,3.99681967]
[1748833706496,8.0,2502.2,2502.0,3.99671592]
[1748833706801,8.0,2502.2,2501.9,3.99681967]
[1748833707479,8.0,2502.2,2501.5,3.99760143]
[1748833707689,8.0,2502.2,2501.9,3.99687567]
[1748833709289,4.261,2502.3,2502.0,3.996798]
[1748833709601,4.261,2502.3,2501.9,3.9969074]
[1748833710396,4.261,2502.3,2501.8,3.99706974]
[1748833710562,0.7943,2502.1,2501.9,3.99694295]
[1748833710763,0.7943,2502.1,2501.7,3.99715148]
[1748833710963,0.7943,2502.1,2501.8,3.99707269]
[1748833711262,0.7943,2502.1,2501.7,3.99720445]
[1748833711589,0.7943,2502.1,2501.8,3.99707775]
[1748833711784,0.7943,2502.1,2501.7,3.99720314]
[1748833712106,11.99697928,2501.9,2501.2,3.99808092]
[1748833712328,4.245,2501.8,2501.4,3.99773241]
[1748833712550,4.245,2501.8,2501.1,0.8318]
[1748833712551,8.0,2501.7,2501.1,0.8318]
[1748833712706,8.0,2501.5,2500.9,3.9984691]
[1748833713046,4.246,2501.4,2500.9,3.9984691]
[1748833713201,4.246,2501.4,2501.0,3.99839901]
[1748833713416,0.7502,2501.6,2501.4,3.99765741]
[1748833713606,0.55,2502.1,2501.4,3.99765741]
[1748833713607,4.245,2501.5,2501.4,3.99765741]
[1748833713807,0.7611,2501.8,2501.4,3.99765741]
[1748833714133,4.246,2501.7,2501.5,3.99751664]
[1748833714355,4.54671588,2502.1,2501.3,0.8189]
[1748833714356,4.245,2501.6,2501.3,0.8189]
[1748833714641,0.7611,2501.9,2500.8,0.40947448]
[1748833714642,4.245,2501.5,2501.2,3.998001]
[1748833714792,4.245,2501.4,2501.2,3.998001]
[1748833715450,4.245,2501.4,2501.2,3.99799757]
[1748833715803,4.245,2501.4,2501.3,3.99792108]
[1748833718437,4.245,2501.4,2501.3,4.79751954]
[1748833718810,0.7611,2501.9,2501.5,3.99752579]
[1748833719134,4.238,2501.8,2501.5,3.99752579]
[1748833719332,8.0,2501.8,2501.7,3.99728184]
[1748833719635,12.237,2501.8,2501.6,3.99736396]
[1748833720900,4.237,2501.8,2501.7,3.99728184]
[1748833721097,0.7589,2502.2,2501.6,0.79949514]
[1748833721322,0.8298,2502.5,2502.1,3.9965557]
[1748833721552,8.0,2502.3,2502.1,3.9965557]
[1748833721765,4.236,2502.2,2501.5,3.99760143]
[1748833721902,4.236,2502.2,2501.9,3.99685956]
[1748833722113,0.55,2502.0,2501.1,0.8295]
[1748833722410,5.84781957,2501.9,2501.2,3.99807493]
[1748833722621,4.24,2501.8,2501.1,0.8295]
[1748833722862,4.24,2501.8,2501.6,3.9974326]
[1748833723611,4.24,2501.8,2501.5,3.9975636]
[1748833724369,4.24,2501.8,2501.6,3.9974258]
[1748833725626,4.24,2501.8,2501.4,3.997612]
[1748833725940,4.24,2501.8,2501.4,3.99771564]
[1748833726112,4.234,2501.7,2501.6,3.99735009]
[1748833726317,4.234,2501.7,2501.5,3.9975355]
[1748833726513,4.234,2501.7,2501.6,3.99744163]
[1748833727019,4.234,2501.7,2501.5,3.99752799]
[1748833727448,4.234,2501.7,2501.1,1.71213178]
[1748833727449,4.234,2501.7,2501.6,3.99744163]
[1748833727935,0.8298,2502.1,2501.6,3.9973792]